bitfinex/quotes_ETHUSD_20240917
["timestamp","ask_amount","ask_price","bid_price","bid_amount"]
[1726572358684,0.0383372,2317.4,2317.0,5.46499885]
[1726572358980,0.0383372,2317.4,2317.1,1.02626319]
[1726572359183,0.0383372,2317.4,2317.0,4.56944167]
[1726572359953,0.0383372,2317.4,2317.1,1.02627189]
[1726572360153,0.0383372,2317.4,2317.0,4.56944167]
[1726572362894,0.0383372,2317.4,2317.1,1.02607875]
[1726572363052,0.0383372,2317.4,2317.0,4.56944167]
[1726572363991,0.03867215,2317.3,2317.0,4.56944167]
[1726572365877,0.03867215,2317.3,2317.0,3.0209]
[1726572366073,0.03867215,2317.3,2317.1,1.0260458]
[1726572366307,0.03867215,2317.3,2317.0,3.0209]
[1726572366868,0.03867215,2317.3,2316.9,0.89555718]
[1726572367092,9.84527215,2317.3,2317.0,2.56490002]
[1726572367293,9.84527215,2317.3,2316.8,8.23266718]
[1726572367498,9.84527215,2317.3,2316.9,2.56483755]
[1726572367807,9.84527215,2317.3,2317.0,1.02593502]
[1726572368006,9.84527215,2317.3,2316.9,4.31607]
[1726572368183,0.03867215,2317.3,2317.0,1.02590826]
[1726572368378,0.03867215,2317.3,2316.8,12.54881718]
[1726572368579,0.03867215,2317.3,2316.9,7.77626478]
[1726572368810,0.03867215,2317.3,2317.1,3.0209]
[1726572369704,0.03867215,2317.3,2317.1,7.33658]
[1726572370011,0.03867215,2317.3,2317.1,3.0209]
[1726572370167,0.03867215,2317.3,2317.2,9.90058947]
[1726572370515,0.03867215,2317.3,2317.2,10.79614665]
[1726572371172,0.03867215,2317.3,2317.2,9.90058947]
[1726572371369,0.03867215,2317.3,2317.2,10.79614665]
[1726572371575,0.0383372,2317.4,2317.2,8.2227821]
[1726572371920,0.0383372,2317.4,2317.3,6.49052565]
[1726572375498,0.0383372,2317.4,2317.3,5.58503947]
[1726572376135,0.0383372,2317.4,2317.3,5.58067103]
[1726572376293,0.0383372,2317.4,2317.3,4.04480841]
[1726572376493,0.0383372,2317.4,2317.3,5.58067103]
[1726572377234,0.0383372,2317.4,2317.3,4.04480841]
[1726572380894,0.0383372,2317.4,2317.3,3.0209]
[1726572381091,0.0383372,2317.4,2317.3,4.0441362]
[1726572381720,0.0383372,2317.4,2317.3,1.0232362]
[1726572382107,0.0383372,2317.4,2317.2,1.02318861]
[1726572382436,0.0383372,2317.4,2317.3,1.02318861]
[1726572382637,0.0383372,2317.4,2317.2,1.02318861]
[1726572385800,0.0383372,2317.4,2317.3,1.02121475]
[1726572386240,0.0383372,2317.4,2317.2,1.02121475]
[1726572386406,0.0383372,2317.4,2317.3,1.02121475]
[1726572386606,0.0383372,2317.4,2317.2,1.02121475]
[1726572386807,0.0383372,2317.4,2317.3,1.02121475]
[1726572387043,0.0383372,2317.4,2317.1,2.43730831]
[1726572387333,15.00309167,2317.3,2316.9,2.43730831]
[1726572387606,1.54854167,2317.1,2316.8,5.43730831]
[1726572387806,13.45455,2317.3,2316.8,5.43730831]
[1726572387807,15.00309167,2317.3,2316.9,5.01983623]
[1726572388133,15.00309167,2317.3,2316.9,4.0]
[1726572388347,15.00309167,2317.3,2316.8,0.90548618]
[1726572388548,15.00309167,2317.3,2316.9,1.01991016]
[1726572388750,15.00309167,2317.3,2316.7,0.90548618]
[1726572388925,15.00309167,2317.3,2316.8,4.0]
[1726572389262,15.00309167,2317.3,2316.7,0.90548618]
[1726572389485,15.00309167,2317.3,2316.7,3.45731064]
[1726572389824,4.31555,2317.2,2316.7,3.45731064]
[1726572390027,4.31555,2317.2,2316.8,1.02000233]
[1726572390262,4.31555,2317.2,2316.7,5.43730831]
[1726572390562,15.00309167,2317.3,2316.8,1.02005364]
[1726572390763,19.31858167,2317.3,2316.8,1.02007424]
[1726572390947,15.00309167,2317.3,2316.8,1.02007424]
[1726572391133,19.31856167,2317.3,2316.8,1.02007424]
[1726572391339,15.00309167,2317.3,2316.8,1.02007424]
[1726572392266,19.31855167,2317.3,2316.8,1.02007424]
[1726572393078,15.00309167,2317.3,2316.8,1.02007424]
[1726572393476,19.31854167,2317.3,2316.8,1.02007424]
[1726572393687,15.00309167,2317.3,2316.8,1.02007424]
[1726572394368,10.68764167,2317.3,2316.9,1.02007424]
[1726572394779,9.1391,2317.3,2316.9,1.02007424]
[1726572395590,9.1391,2317.3,2317.0,1.0205147]
[1726572397690,9.1391,2317.3,2317.1,1.0205147]
[1726572398353,9.1391,2317.3,2317.0,1.53077205]
[1726572398565,9.1391,2317.3,2317.1,1.02117118]
[1726572398864,9.1391,2317.3,2317.0,1.53077205]
[1726572399194,9.1391,2317.3,2317.0,2.55195065]
[1726572399379,9.1391,2317.3,2317.0,1.53077205]
[1726572399617,9.1391,2317.3,2317.1,1.02134461]
[1726572400432,9.1391,2317.3,2317.0,1.53205691]
[1726572400590,9.1391,2317.3,2317.1,1.02147556]
[1726572401392,9.1391,2317.3,2317.0,1.53227503]
[1726572401589,9.1391,2317.3,2317.1,2.55391082]
[1726572401792,9.1391,2317.3,2317.1,1.53227503]
[1726572403573,9.1391,2317.3,2317.0,0.90548618]
[1726572403741,9.1391,2317.3,2317.1,2.5549478]
[1726572404070,9.1391,2317.3,2317.0,0.90548618]
[1726572404269,9.1391,2317.3,2317.1,2.55494758]
[1726572404578,9.1391,2317.3,2317.0,0.90548618]
[1726572404743,9.1391,2317.3,2317.1,2.55504871]
[1726572405064,9.1391,2317.3,2317.0,0.90548618]
[1726572405267,9.1391,2317.3,2317.1,2.55504923]
[1726572405473,9.1391,2317.3,2317.0,0.90548618]
[1726572405642,9.1391,2317.3,2317.1,2.55513001]
[1726572405843,9.1391,2317.3,2317.0,0.90548618]
[1726572406045,9.1391,2317.3,2317.1,2.5551304]
[1726572406249,9.1391,2317.3,2317.0,0.90548618]
[1726572406567,9.1391,2317.3,2317.1,2.5552095]
[1726572406781,9.1391,2317.3,2317.0,0.90548618]
[1726572406782,9.1391,2317.3,2317.2,1.02208359]
[1726572407276,9.1391,2317.3,2317.0,0.90548618]
[1726572407446,9.1391,2317.3,2317.1,2.55532612]
[1726572407634,9.1391,2317.3,2317.0,0.90548618]
[1726572407635,9.1391,2317.3,2317.2,1.0221117]
[1726572408372,0.0383372,2317.4,2317.2,1.0221117]
[1726572408572,0.0383372,2317.4,2317.1,0.90548618]
[1726572408730,0.0383372,2317.4,2317.2,2.55548446]
[1726572408930,0.0383372,2317.4,2317.2,1.53328937]
[1726572409376,0.0383372,2317.4,2317.1,0.90548618]
[1726572409681,0.0383372,2317.4,2317.2,2.55564875]
[1726572409975,0.0383372,2317.4,2317.1,0.90548618]
[1726572410183,0.0383372,2317.4,2317.2,2.55564846]
[1726572410334,0.0383372,2317.4,2317.3,1.02232034]
[1726572411360,0.0383372,2317.4,2317.2,1.5334747]
[1726572411566,0.0383372,2317.4,2317.1,0.90548618]
[1726572411764,0.0383372,2317.4,2317.2,2.55603468]
[1726572411989,0.0383372,2317.4,2317.1,0.90548618]
[1726572412186,0.0383372,2317.4,2317.2,2.55601183]
[1726572412484,0.0383372,2317.4,2317.3,1.02240473]
[1726572415044,0.0383372,2317.4,2317.3,1.02263449]
[1726572415689,0.0383372,2317.4,2317.3,2.55669207]
[1726572420002,0.0383372,2317.4,2317.3,6.48327743]
[1726572420147,0.0383372,2317.4,2317.3,3.89998388]
[1726572420346,0.0383372,2317.4,2317.3,5.93980421]
[1726572420546,0.0383372,2317.4,2317.3,3.89998388]
[1726572422588,9.0738372,2317.4,2317.3,3.46327993]
[1726572423147,9.0738372,2317.4,2317.3,3.46443846]
[1726572423448,9.0738372,2317.4,2317.3,2.55804978]
[1726572424354,9.0738372,2317.4,2317.3,3.46443846]
[1726572424991,9.0738372,2317.4,2317.3,2.55804978]
[1726572425165,9.0738372,2317.4,2317.3,3.46443846]
[1726572428062,9.0738372,2317.4,2317.3,3.46607411]
[1726572429395,9.0738372,2317.4,2317.3,2.55968543]
[1726572429702,9.0738372,2317.4,2317.3,3.46647116]
[1726572432853,9.0738372,2317.4,2317.3,3.46723263]
[1726572434310,0.0383372,2317.4,2317.3,3.46723263]
[1726572437771,0.0383372,2317.4,2317.3,3.46753284]
[1726572440223,0.0383372,2317.4,2317.3,5.95267664]
[1726572442217,0.0383372,2317.4,2317.3,6.95959132]
[1726572442393,0.0383372,2317.4,2317.3,4.39884421]
[1726572442821,0.0383372,2317.4,2317.3,3.05575158]
[1726572444033,0.0383372,2317.4,2317.2,3.0209]
[1726572444199,0.0383372,2317.4,2317.3,1.0068986]
[1726572445922,0.0383372,2317.4,2317.3,1.63620768]
[1726572446988,0.0383372,2317.4,2317.3,0.62930908]
[1726572447330,0.0383372,2317.4,2317.0,7.33678]
[1726572447535,0.0383372,2317.4,2317.3,0.62931258]
[1726572447885,0.0383372,2317.4,2317.3,1.63621271]
[1726572448120,0.0383372,2317.4,2317.3,0.62931258]
[1726572448532,0.0383372,2317.4,2317.3,5.55679121]
[1726572448735,0.0383372,2317.4,2317.3,6.59754457]
[1726572449037,0.0383372,2317.4,2317.3,7.6044447]
[1726572449542,0.0383372,2317.4,2317.3,6.24343305]
[1726572450815,0.0383372,2317.4,2317.3,5.23653292]
[1726572451124,0.0383372,2317.4,2317.3,6.24342086]
[1726572452433,9.4515372,2317.4,2317.3,5.23652823]
[1726572452615,15.31525887,2317.4,2317.3,3.18887474]
[1726572453502,15.31525887,2317.4,2317.3,0.62930789]
[1726572453702,15.31525887,2317.4,2317.3,3.18943064]
[1726572454123,15.31525887,2317.4,2317.3,4.09699321]
[1726572454307,15.31525887,2317.4,2317.3,3.18943064]
[1726572454508,15.31525887,2317.4,2317.3,2.56012275]
[1726572454841,15.31525887,2317.4,2317.3,4.0970484]
[1726572455018,15.31525887,2317.4,2317.3,4.09799495]
[1726572455212,15.31525887,2317.4,2317.3,3.19043238]
[1726572458540,15.31525887,2317.4,2317.3,3.19086878]
[1726572460602,19.63043887,2317.4,2317.3,3.19086878]
[1726572460843,21.59348276,2317.4,2317.3,2.5615057]
[1726572461750,21.59348276,2317.4,2317.3,1.02460228]
[1726572461932,4.31555,2317.2,2317.1,0.90756257]
[1726572462140,15.15889167,2317.2,2317.1,4.09845084]
[1726572462317,15.15889167,2317.2,2317.1,4.09845712]
[1726572462847,19.47444167,2317.2,2317.1,4.09845712]
[1726572463147,19.47444167,2317.2,2317.1,3.4690374]
[1726572463315,19.47444167,2317.2,2317.1,4.09846539]
[1726572463527,15.15889167,2317.2,2317.1,4.09810764]
[1726572463923,19.47444167,2317.2,2317.1,4.09810764]
[1726572465261,19.47444167,2317.2,2317.1,3.46867965]
[1726572465427,19.47444167,2317.2,2317.1,4.09809968]
[1726572467660,19.47444167,2317.2,2317.1,3.46867965]
[1726572467819,19.47444167,2317.2,2317.1,4.09810148]
[1726572468019,15.15889167,2317.2,2317.1,4.09810148]
[1726572468220,15.15889167,2317.2,2317.1,4.09744581]
[1726572469062,15.15889167,2317.2,2317.1,4.09744688]
[1726572472370,15.15889167,2317.2,2317.1,4.09744035]
[1726572472892,15.15889167,2317.2,2317.1,3.46802398]
[1726572473053,15.15889167,2317.2,2317.1,4.09743955]
[1726572473379,15.15889167,2317.2,2317.1,4.09708409]
[1726572473735,15.15889167,2317.2,2317.1,3.46766852]
[1726572473935,15.15889167,2317.2,2317.1,4.09708068]
[1726572475576,15.86310887,2317.4,2317.1,4.09708068]
[1726572475743,20.17844887,2317.4,2317.2,2.56010595]
[1726572475937,20.17844887,2317.4,2317.1,0.90756257]
[1726572476137,20.17844887,2317.4,2317.2,2.55995735]
[1726572476348,20.17844887,2317.4,2317.3,1.02398294]
[1726572476550,20.17844887,2317.4,2317.1,0.90756257]
[1726572476839,8.63072,2317.3,2317.2,2.55999238]
[1726572477073,10.17926167,2317.3,2317.2,1.02399695]
[1726572477764,10.17926167,2317.3,2317.2,2.56001029]
[1726572478268,10.17926167,2317.3,2317.2,2.56000302]
[1726572478488,4.31561,2317.2,2317.0,0.90756257]
[1726572478696,4.31561,2317.2,2317.1,2.5600458]
[1726572481072,8.63122,2317.2,2317.1,2.5600458]
[1726572481582,4.31573,2317.1,2316.9,3.92846257]
[1726572481772,8.63165,2317.1,2317.0,2.56099731]
[1726572481969,8.63165,2317.1,2317.0,3.1904279]
[1726572482265,4.31573,2317.1,2317.0,3.81986209]
[1726572482621,4.31573,2317.1,2317.0,4.09799047]
[1726572482917,4.31573,2317.1,2317.0,3.1904279]
[1726572486635,10.18019167,2317.1,2317.0,3.1909902]
[1726572487187,10.18019167,2317.1,2317.0,2.56155961]
[1726572488526,4.31573,2317.1,2317.0,2.56155961]
[1726572491016,8.63146,2317.1,2317.0,2.56155961]
[1726572491204,4.31573,2317.1,2317.0,2.56155961]
[1726572491403,4.31611,2316.9,2316.8,3.40934489]
[1726572491607,4.31611,2316.9,2316.8,3.4682288]
[1726572492414,4.31611,2316.9,2316.8,2.56135467]
[1726572492623,4.31611,2316.9,2316.8,3.46819141]
[1726572492839,4.31611,2316.9,2316.8,2.56135467]
[1726572493132,4.31611,2316.9,2316.8,3.46818703]
[1726572494749,4.31611,2316.9,2316.8,3.92269853]
[1726572495034,4.31611,2316.9,2316.8,3.46824655]
[1726572495907,4.31611,2316.9,2316.8,3.46828466]
[1726572496296,4.31611,2316.9,2316.8,3.46827841]
[1726572496494,4.31611,2316.9,2316.8,0.90692374]
[1726572496802,4.31611,2316.9,2316.8,3.46401897]
[1726572498299,4.31611,2316.9,2316.8,5.96452958]
[1726572498614,4.31611,2316.9,2316.8,2.55709523]
[1726572499053,4.31611,2316.9,2316.8,3.91843909]
[1726572499341,4.31611,2316.9,2316.8,5.9644644]
[1726572500008,4.31611,2316.9,2316.8,2.55709523]
[1726572500214,4.31611,2316.9,2316.8,5.96443563]
[1726572501440,4.31611,2316.9,2316.8,5.96482413]
[1726572501819,4.31611,2316.9,2316.8,2.55748373]
[1726572503171,8.63222,2316.9,2316.8,3.46467884]
[1726572503654,17.79862,2316.9,2316.8,3.46467884]
[1726572503873,19.24827017,2316.9,2316.8,2.55748373]
[1726572504220,4.31648,2316.7,2316.6,0.90719511]
[1726572504419,4.31648,2316.7,2316.6,3.46612507]
[1726572504420,13.82598,2316.7,2316.6,3.46612507]
[1726572504651,18.14246,2316.7,2316.6,3.46612507]
[1726572504834,18.14246,2316.7,2316.6,2.55892996]
[1726572505030,18.14246,2316.7,2316.6,1.02357198]
[1726572505257,8.6337,2316.5,2316.4,0.90719511]
[1726572505463,10.18236167,2316.5,2316.4,1.02088375]
[1726572505755,10.18236167,2316.5,2316.2,0.90719511]
[1726572505756,4.31723,2316.3,2316.2,0.90719511]
[1726572505964,5.86577167,2316.3,2316.2,2.55103878]
[1726572506319,5.86577167,2316.3,2316.2,1.02044606]
[1726572506570,5.86577167,2316.3,2316.2,2.55111515]
[1726572506917,5.86577167,2316.3,2316.0,3.92809511]
[1726572507119,5.86577167,2316.3,2316.1,2.54966967]
[1726572507358,5.86577167,2316.3,2316.0,3.92809511]
[1726572509168,19.35424167,2316.1,2316.0,0.90719511]
[1726572509666,23.67184167,2316.1,2316.0,0.90719511]
[1726572510171,27.98944167,2316.1,2316.0,0.90719511]
[1726572510376,30.98944167,2316.1,2316.0,0.90719511]
[1726572510660,29.44162,2316.0,2315.9,1.36134386]
[1726572515537,34.3094,2316.0,2315.9,1.36134386]
[1726572517956,35.85794167,2316.0,2315.9,1.36134386]
[1726572519781,18.58682167,2316.0,2315.1,3.9281]
[1726572519951,4.31927,2315.3,2315.1,3.9281]
[1726572520156,4.31928,2315.2,2315.1,3.9281]
[1726572527470,4.31927,2315.3,2315.1,3.9281]
[1726572527774,4.31901,2315.4,2315.1,3.9281]
[1726572528502,8.63769,2315.5,2315.1,3.9281]
[1726572528720,4.31881,2315.5,2315.1,3.9281]
[1726572529302,4.31898,2315.4,2315.1,3.9281]
[1726572532526,4.31876,2315.5,2315.1,3.9281]
[1726572532828,4.31857,2315.6,2315.3,3.9281]
[1726572538634,4.31873,2315.5,2315.1,4.31937]
[1726572540734,4.31873,2315.5,2315.2,3.9281]
[1726572550545,4.31873,2315.5,2315.3,2.49416498]
[1726572550752,4.31873,2315.5,2315.3,1.49521784]
[1726572551562,4.31873,2315.5,2315.4,2.49419047]
[1726572552613,16.6441,2316.1,2315.6,4.31837]
[1726572552809,4.31786,2316.0,2315.7,3.39909452]
[1726572553067,4.31762,2316.1,2315.8,7.32719452]
[1726572553356,9.0901,2316.3,2315.9,2.49890343]
[1726572553698,4.31715,2316.4,2316.1,3.9281]
[1726572553980,4.31715,2316.4,2316.2,2.49890343]
[1726572554184,8.6343,2316.4,2316.3,0.99956786]
[1726572554481,8.6343,2316.4,2316.1,3.9281]
[1726572554638,4.31723,2316.3,2316.2,0.99907396]
[1726572555059,4.31723,2316.3,2316.2,0.99906725]
[1726572555263,4.31723,2316.3,2316.2,0.99908251]
[1726572555448,4.31723,2316.3,2316.1,5.42599236]
[1726572555847,4.31723,2316.3,2316.1,5.42601391]
[1726572556064,5.86595167,2316.2,2316.1,1.49791391]
[1726572556246,5.86595167,2316.2,2316.0,1.49791391]
[1726572556449,5.86595167,2316.2,2315.9,1.49791391]
[1726572556679,10.18345167,2316.2,2316.0,0.9983376]
[1726572557276,5.86595167,2316.2,2316.0,0.9983376]
[1726572557491,5.86595167,2316.2,2315.8,2.398105]
[1726572557792,5.86595167,2316.2,2315.9,0.99808948]
[1726572558280,10.18346167,2316.2,2315.8,2.39733183]
[1726572558449,5.86595167,2316.2,2315.9,0.99808923]
[1726572558886,5.86595167,2316.2,2315.7,15.59108808]
[1726572559065,5.86595167,2316.2,2315.8,0.99788265]
[1726572559459,10.18345167,2316.2,2315.8,0.99788265]
[1726572559933,5.86595167,2316.2,2315.8,0.99788265]
[1726572560180,5.86633167,2316.0,2315.7,0.62918625]
[1726572560383,4.31806,2315.9,2315.7,0.62918625]
[1726572560690,4.31816,2315.8,2315.7,0.62918625]
[1726572560886,15.55150167,2315.8,2315.7,0.62918625]
[1726572562490,9.6848,2315.8,2315.7,0.62918625]
[1726572564452,4.31806,2315.9,2315.7,0.62918625]
[1726572564670,8.63614,2315.9,2315.7,0.62918625]
[1726572566079,4.31806,2315.9,2315.7,0.62918625]
[1726572566614,4.31816,2315.8,2315.7,0.62918625]
[1726572567881,4.31816,2315.8,2315.4,10.64394407]
[1726572568080,4.31816,2315.8,2315.5,0.99788911]
[1726572568505,4.31837,2315.7,2315.5,0.99788911]
[1726572568728,4.31797,2315.9,2315.5,0.99788911]
[1726572568915,9.8388,2316.0,2315.5,2.49472209]
[1726572569213,4.31808,2315.9,2315.6,0.99788911]
[1726572570705,4.31808,2315.9,2315.5,6.71589115]
[1726572570915,4.31808,2315.9,2315.6,0.99804004]
[1726572572327,18.47451,2316.0,2315.6,5.31657004]
[1726572572554,18.47451,2316.0,2315.7,0.99804004]
[1726572572752,18.47451,2316.0,2315.6,1.49706006]
[1726572572929,18.47451,2316.0,2315.7,0.99821417]
[1726572572930,14.15663,2316.0,2315.7,0.99821417]
[1726572573132,8.63572,2316.0,2315.7,3.9281]
[1726572573346,4.31783,2316.0,2315.7,3.9281]
[1726572574541,8.63574,2316.0,2315.5,10.64398115]
[1726572574719,8.63574,2316.0,2315.6,0.99838278]
[1726572574921,8.63574,2316.0,2315.6,2.49543676]
[1726572575140,8.63574,2316.0,2315.6,1.49706006]
[1726572575365,8.63574,2316.0,2315.6,2.49544131]
[1726572575521,8.63574,2316.0,2315.6,1.49706006]
[1726572575717,4.31763,2316.1,2315.6,5.81558006]
[1726572575921,4.31763,2316.1,2315.8,3.9281]
[1726572576164,13.95914,2316.2,2315.8,8.24618]
[1726572576366,13.95914,2316.2,2315.9,0.99872997]
[1726572576519,13.95914,2316.2,2315.8,9.74324006]
[1726572577159,18.27665,2316.2,2315.9,0.99874618]
[1726572577327,13.95914,2316.2,2315.9,0.99874618]
[1726572580682,4.3176,2316.1,2315.9,0.99874618]
[1726572580989,4.31797,2315.9,2315.7,1.49706006]
[1726572581188,5.86632167,2316.0,2315.6,10.64381115]
[1726572581479,4.31778,2316.0,2315.7,2.4961027]
[1726572581685,4.31778,2316.0,2315.6,10.64381115]
[1726572581887,4.31778,2316.0,2315.7,2.49609731]
[1726572582184,4.31778,2316.0,2315.8,0.99903725]
[1726572582348,4.31778,2316.0,2315.6,9.14675109]
[1726572582551,4.31778,2316.0,2315.7,2.49753483]
[1726572582851,4.31778,2316.0,2315.8,0.99901393]
[1726572585275,4.31768,2316.1,2315.8,0.99901393]
[1726572585481,4.31768,2316.1,2315.8,2.49753483]
[1726572585718,4.31768,2316.1,2315.7,5.8168309]
[1726572586017,15.50783167,2316.2,2315.7,5.8168309]
[1726572586018,5.86641167,2316.0,2315.8,0.99915784]
[1726572586226,4.31787,2316.0,2315.8,0.99915784]
[1726572587314,4.31787,2316.0,2315.7,2.22463934]
[1726572587523,4.31797,2315.9,2315.7,1.498747]
[1726572587733,13.44447,2315.9,2315.7,2.22464436]
[1726572588032,9.1265,2315.9,2315.7,2.22464436]
[1726572588245,13.44453,2315.9,2315.7,2.22464436]
[1726572589489,13.44453,2315.9,2315.8,0.999454]
[1726572589824,13.44453,2315.9,2315.7,2.22464436]
[1726572590124,9.1265,2315.9,2315.7,2.22464436]
[1726572590332,9.1265,2315.9,2315.8,0.99945318]
[1726572590548,13.44447,2315.9,2315.7,2.22466267]
[1726572590695,13.44447,2315.9,2315.8,0.9995694]
[1726572591358,13.44447,2315.9,2315.8,0.99956808]
[1726572591688,13.44447,2315.9,2315.7,3.22499301]
[1726572591883,13.44447,2315.9,2315.8,0.99956808]
[1726572592084,13.44447,2315.9,2315.8,0.99967328]
[1726572594513,9.1265,2315.9,2315.8,2.49978439]
[1726572595647,4.31782,2316.0,2315.8,2.49978439]
[1726572595966,4.31782,2316.0,2315.9,1.00022227]
[1726572596335,4.31782,2316.0,2315.9,1.00022175]
[1726572596854,4.31782,2316.0,2315.7,0.90019109]
[1726572597030,4.31782,2316.0,2315.8,2.50100969]
[1726572597229,4.31782,2316.0,2315.9,1.00040327]
[1726572598326,4.31782,2316.0,2315.9,2.50158987]
[1726572600844,4.31782,2316.0,2315.9,2.50225813]
[1726572601048,4.31749,2316.2,2315.9,2.50225813]
[1726572601266,14.25594,2316.3,2316.0,2.50225813]
[1726572601578,4.31724,2316.3,2316.1,2.50225813]
[1726572601873,4.31724,2316.3,2316.2,2.50225813]
[1726572602579,8.63448,2316.3,2316.2,2.50225813]
[1726572602741,19.75631217,2316.3,2316.2,1.00090325]
[1726572602938,17.83368,2316.3,2316.2,1.00090325]
[1726572604238,5.86558167,2316.4,2315.9,3.35686347]
[1726572604239,9.7581,2316.0,2315.9,0.90019109]
[1726572604574,14.07588,2316.0,2315.9,3.40278982]
[1726572604934,14.07588,2316.0,2315.9,0.90019109]
[1726572605155,14.07588,2316.0,2315.9,3.4028853]
[1726572605156,9.7581,2316.0,2315.9,3.4028853]
[1726572605355,4.3176,2316.1,2315.9,3.4028853]
[1726572605356,8.63529,2316.1,2315.9,3.4028853]
[1726572605556,4.3176,2316.1,2316.0,2.50269421]
[1726572605948,10.18385167,2316.1,2316.0,2.50269421]
[1726572606879,19.71695167,2316.1,2316.0,2.50269421]
[1726572607043,22.12036984,2316.1,2316.0,2.50269421]
[1726572608585,19.71695167,2316.1,2316.0,2.50269421]
[1726572609994,19.71695167,2316.1,2316.0,1.00107768]
[1726572610238,19.71695167,2316.1,2316.0,2.50287235]
[1726572610533,15.39924167,2316.1,2316.0,2.50255694]
[1726572610834,4.3176,2316.1,2316.0,1.00107768]
[1726572611337,4.4255501,2316.1,2316.0,1.00107768]
[1726572611828,8.7431501,2316.1,2316.0,1.00107768]
[1726572612408,4.3176,2316.1,2316.0,1.00107768]
[1726572612635,10.18374167,2316.1,2316.0,1.00107768]
[1726572612840,21.37172084,2316.1,2315.8,0.90019109]
[1726572613130,22.25700106,2316.0,2315.9,2.50256405]
[1726572613435,22.25700106,2316.0,2315.7,0.90019109]
[1726572613436,9.1952,2316.0,2315.7,0.90019109]
[1726572613638,17.83022,2316.2,2315.8,7.70300816]
[1726572613818,17.83022,2316.2,2315.9,3.4035425]
[1726572613819,13.51267,2316.2,2315.9,3.4035425]
[1726572614021,4.31761,2316.1,2316.0,2.50335141]
[1726572614747,4.31761,2316.1,2316.0,2.50328755]
[1726572618425,4.31761,2316.1,2316.0,3.13252556]
[1726572619455,4.31761,2316.1,2316.0,3.13276946]
[1726572621572,4.31761,2316.1,2316.0,2.50353145]
[1726572621773,4.31761,2316.1,2316.0,3.13276398]
[1726572622057,4.31761,2316.1,2316.0,2.50353145]
[1726572622428,4.31761,2316.1,2316.0,3.13276426]
[1726572624262,4.31761,2316.1,2316.0,3.13294609]
[1726572625215,4.31761,2316.1,2316.0,3.13296032]
[1726572625369,4.31761,2316.1,2316.0,2.50371328]
[1726572625553,4.31761,2316.1,2316.0,3.13296053]
[1726572626025,4.31761,2316.1,2316.0,3.13296895]
[1726572626764,8.63522,2316.1,2316.0,2.50371328]
[1726572626970,8.63522,2316.1,2316.0,3.13297627]
[1726572627522,8.63522,2316.1,2316.0,3.13296789]
[1726572628451,8.63522,2316.1,2316.0,3.13296764]
[1726572628765,8.63522,2316.1,2316.0,2.50371328]
[1726572628987,8.63522,2316.1,2316.0,3.13297034]
[1726572629301,4.31778,2316.0,2315.9,0.90019109]
[1726572629458,4.31778,2316.0,2315.9,4.40478425]
[1726572629651,4.31778,2316.0,2315.9,4.03343335]
[1726572629881,4.31778,2316.0,2315.9,4.40479434]
[1726572630468,4.31778,2316.0,2315.9,3.77554048]
[1726572630657,4.31778,2316.0,2315.9,4.40480608]
[1726572631154,4.31778,2316.0,2315.9,1.90081768]
[1726572632493,4.31778,2316.0,2315.9,0.90019109]
[1726572632787,4.31778,2316.0,2315.9,2.90235722]
[1726572632961,4.31778,2316.0,2315.9,4.40471032]
[1726572634149,4.31778,2316.0,2315.9,1.90078849]
[1726572635794,8.63556,2316.0,2315.9,1.52944286]
[1726572636155,17.79416,2316.0,2315.9,0.90019109]
[1726572636452,17.79416,2316.0,2315.9,1.52945995]
[1726572636854,23.69919563,2316.0,2315.9,1.52945995]
[1726572637200,23.69919563,2316.0,2315.9,0.90019109]
[1726572637568,4.31845,2315.7,2315.5,3.3666]
[1726572637774,4.31845,2315.7,2315.6,1.00069621]
[1726572638497,4.31811,2315.9,2315.6,1.00069621]
[1726572638698,4.31811,2315.9,2315.7,1.00069621]
[1726572639001,4.31811,2315.9,2315.8,0.62931264]
[1726572639999,4.31811,2315.9,2315.5,7.68524]
[1726572640161,4.31811,2315.9,2315.6,1.00066836]
[1726572640358,4.31811,2315.9,2315.7,1.00066836]
[1726572640592,4.31811,2315.9,2315.5,7.68524]
[1726572640593,4.31811,2315.9,2315.8,0.62929947]
[1726572641295,4.31811,2315.9,2315.8,1.00066232]
[1726572641590,4.31811,2315.9,2315.8,0.62929947]
[1726572643401,4.31811,2315.9,2315.8,2.50357256]
[1726572644260,4.31811,2315.9,2315.8,3.13187123]
[1726572646798,4.31811,2315.9,2315.8,3.1321599]
[1726572647862,4.31761,2316.1,2315.8,6.4987599]
[1726572648070,8.63537,2316.1,2315.9,3.13213469]
[1726572648266,4.31761,2316.1,2316.0,1.00163138]
[1726572648474,4.31761,2316.1,2316.0,3.13230293]
[1726572648680,4.31761,2316.1,2316.0,3.13230786]
[1726572649367,8.63529,2316.1,2316.0,2.50404609]
[1726572649569,8.63529,2316.1,2316.0,1.00163138]
[1726572649814,4.31761,2316.1,2316.0,2.50420539]
[1726572651820,4.31761,2316.1,2316.0,2.50441076]
[1726572652215,4.31761,2316.1,2316.0,3.13266253]
[1726572652381,4.31761,2316.1,2316.0,2.50441076]
[1726572653334,4.31761,2316.1,2316.0,3.13266122]
[1726572653489,4.31761,2316.1,2316.0,3.13266265]
[1726572655487,4.31761,2316.1,2316.0,3.1326567]
[1726572656727,4.31761,2316.1,2316.0,3.13272506]
[1726572659115,4.31761,2316.1,2316.0,3.13272473]
[1726572659618,4.31761,2316.1,2316.0,3.13272823]
[1726572659929,8.63531,2316.1,2316.0,3.13272823]
[1726572660250,8.63531,2316.1,2316.0,2.50447912]
[1726572660432,8.63531,2316.1,2316.0,3.13272689]
[1726572660930,8.63531,2316.1,2316.0,3.13280502]
[1726572661133,8.63531,2316.1,2316.0,2.50455725]
[1726572661624,8.63531,2316.1,2316.0,3.13281011]
[1726572661931,2.3981,2316.4,2316.0,4.4120138]
[1726572662104,2.3981,2316.4,2316.2,0.90785889]
[1726572662305,6.71485,2316.6,2316.3,2.87584468]
[1726572662615,6.7148,2316.6,2316.4,3.13273325]
[1726572662826,4.31686,2316.5,2316.3,0.90785889]
[1726572663022,4.31686,2316.5,2316.4,2.50368892]
[1726572663203,2.3981,2316.6,2316.4,1.00147557]
[1726572663413,4.31685,2316.5,2316.3,0.90785889]
[1726572663722,2.3981,2316.6,2316.4,1.0011722]
[1726572663909,6.75161,2316.8,2316.5,2.50285682]
[1726572664091,6.75161,2316.8,2316.6,1.00109278]
[1726572664287,5.86651211,2316.9,2316.5,2.12894617]
[1726572664492,6.75119,2317.1,2316.6,6.8180326]
[1726572664730,4.31597,2317.0,2316.7,1.00057795]